[Event "*** Titled Tuesday Blitz"]
[Site "Chess.com"]
[Date "2021.03.09"]
[Round "5"]
[White "halldorgretar"]
[Black "Lion-Al-Messi"]
[Result "0-1"]
[WhiteElo "2249"]
[BlackElo "2487"]
[TimeControl "180+1"]
[EndTime "10:56:44 PST"]
[Termination "Lion-Al-Messi won on time"]

1. d4 {[%clk 0:03:00.9]} 1... d5 {[%clk 0:02:59.3]} 2. c4 {[%clk 0:03:00.2]}
2... c6 {[%clk 0:02:59.9]} 3. Nf3 {[%clk 0:02:58.2]} 3... Nf6 {[%clk 0:02:59.8]}
4. Nc3 {[%clk 0:02:57.5]} 4... dxc4 {[%clk 0:02:58.2]} 5. a4 {[%clk 0:02:56.8]}
5... Bf5 {[%clk 0:02:56.5]} 6. Nh4 {[%clk 0:02:56.3]} 6... Bd7 {[%clk
0:02:55.5]} 7. e4 {[%clk 0:02:31.4]} 7... e6 {[%clk 0:02:55.4]} 8. g3 {[%clk
0:02:10.7]} 8... Bb4 {[%clk 0:02:54.5]} 9. Bg2 {[%clk 0:02:09.4]} 9... O-O
{[%clk 0:02:51.9]} 10. O-O {[%clk 0:02:09]} 10... Qe7 {[%clk 0:02:48.5]} 11. Qe2
{[%clk 0:01:56]} 11... e5 {[%clk 0:02:45.4]} 12. dxe5 {[%clk 0:01:47.6]} 12...
Qxe5 {[%clk 0:02:46.3]} 13. Qxc4 {[%clk 0:01:40.8]} 13... Bxc3 {[%clk
0:02:44.7]} 14. bxc3 {[%clk 0:01:36.3]} 14... Be6 {[%clk 0:02:44.6]} 15. Qd4
{[%clk 0:01:32.2]} 15... Nbd7 {[%clk 0:02:44]} 16. a5 {[%clk 0:01:21.3]} 16...
c5 {[%clk 0:02:40.2]} 17. Qxe5 {[%clk 0:00:55.9]} 17... Nxe5 {[%clk 0:02:41.1]}
18. Bf4 {[%clk 0:00:47.4]} 18... Nd3 {[%clk 0:02:39.1]} 19. Bd6 {[%clk
0:00:41.8]} 19... Rfd8 {[%clk 0:02:37.9]} 20. e5 {[%clk 0:00:40.4]} 20... Bd5
{[%clk 0:02:26.9]} 21. Nf5 {[%clk 0:00:14.8]} 21... Bxg2 {[%clk 0:02:23.9]} 22.
Kxg2 {[%clk 0:00:13.2]} 22... Ne4 {[%clk 0:02:23.8]} 23. f3 {[%clk 0:00:10.5]}
23... Nxd6 {[%clk 0:02:17.8]} 24. exd6 {[%clk 0:00:10]} 24... g6 {[%clk
0:02:15.8]} 25. Ne7+ {[%clk 0:00:09.5]} 25... Kg7 {[%clk 0:02:16.1]} 26. Nd5
{[%clk 0:00:06.7]} 26... Rxd6 {[%clk 0:02:16]} 27. c4 {[%clk 0:00:06.4]} 27...
Ne5 {[%clk 0:02:12]} 28. Ne3 {[%clk 0:00:03.5]} 28... Rad8 {[%clk 0:02:10.6]}
29. f4 {[%clk 0:00:03.2]} 29... Rd2+ {[%clk 0:02:10.5]} 30. Kh3 {[%clk
0:00:02.4]} 30... Nd3 {[%clk 0:02:09.2]} 0-1

[Event "*** Titled Tuesday Blitz"]
[Site "Chess.com"]
[Date "2021.03.09"]
[Round "5"]
[White "Zhuu96"]
[Black "Azerichess"]
[Result "1-0"]
[WhiteElo "2878"]
[BlackElo "2968"]
[TimeControl "180+1"]
[EndTime "10:56:58 PST"]
[Termination "Zhuu96 won on time"]

1. d4 {[%clk 0:03:00.9]} 1... d5 {[%clk 0:00:16.9]} 2. Nf3 {[%clk 0:02:59.1]}
2... c5 {[%clk 0:00:17.4]} 3. c3 {[%clk 0:02:57.3]} 3... Nf6 {[%clk 0:00:18.3]}
4. Bf4 {[%clk 0:02:57]} 4... cxd4 {[%clk 0:00:19.2]} 5. cxd4 {[%clk 0:02:56.4]}
5... Nc6 {[%clk 0:00:18.1]} 6. Nc3 {[%clk 0:02:56]} 6... e6 {[%clk 0:00:18.4]}
7. e3 {[%clk 0:02:55.2]} 7... Bd6 {[%clk 0:00:18.9]} 8. Bg3 {[%clk 0:02:54.6]}
8... O-O {[%clk 0:00:18.5]} 9. a3 {[%clk 0:02:54.2]} 9... a6 {[%clk 0:00:18.6]}
10. Bd3 {[%clk 0:02:53.9]} 10... Re8 {[%clk 0:00:18.8]} 11. Ne5 {[%clk
0:02:53.7]} 11... Bxe5 {[%clk 0:00:18.6]} 12. dxe5 {[%clk 0:02:53.6]} 12... Nd7
{[%clk 0:00:19.1]} 13. f4 {[%clk 0:02:54.1]} 13... Nc5 {[%clk 0:00:19.6]} 14.
Bf2 {[%clk 0:02:32.6]} 14... Nxd3+ {[%clk 0:00:13.1]} 15. Qxd3 {[%clk
0:02:32.2]} 15... Bd7 {[%clk 0:00:11]} 16. O-O {[%clk 0:02:28]} 16... Na5 {[%clk
0:00:10.4]} 17. Rad1 {[%clk 0:02:20.2]} 17... Bc6 {[%clk 0:00:09.9]} 18. Qe2
{[%clk 0:02:18.2]} 18... Qe7 {[%clk 0:00:08.4]} 19. Qg4 {[%clk 0:02:17.4]} 19...
f5 {[%clk 0:00:06.6]} 20. exf6 {[%clk 0:02:11.2]} 20... Qxf6 {[%clk 0:00:06.3]}
21. e4 {[%clk 0:02:11.3]} 21... Nc4 {[%clk 0:00:05]} 22. exd5 {[%clk 0:02:08.5]}
22... exd5 {[%clk 0:00:04.8]} 23. Nxd5 {[%clk 0:02:09.1]} 23... Bxd5 {[%clk
0:00:04.7]} 24. Rxd5 {[%clk 0:02:08.8]} 24... Qe6 {[%clk 0:00:02.1]} 25. Qh5
{[%clk 0:02:02.2]} 25... g6 {[%clk 0:00:01.2]} 26. Rg5 {[%clk 0:02:00.8]} 26...
Qf7 {[%clk 0:00:01.1]} 27. f5 {[%clk 0:01:59.2]} 27... Ne5 {[%clk 0:00:01.7]}
28. Bd4 {[%clk 0:01:56.7]} 28... Qd5 {[%clk 0:00:01.1]} 29. Qh4 {[%clk
0:01:51.9]} 1-0

[Event "*** Titled Tuesday Blitz"]
[Site "Chess.com"]
[Date "2021.03.09"]
[Round "5"]
[White "Loy_Konstantin"]
[Black "Ranindu2003"]
[Result "0-1"]
[WhiteElo "2357"]
[BlackElo "2617"]
[TimeControl "180+1"]
[EndTime "10:56:58 PST"]
[Termination "Ranindu2003 won by resignation"]

1. e4 {[%clk 0:02:57.6]} 1... g6 {[%clk 0:02:59.7]} 2. d4 {[%clk 0:02:57.5]}
2... Bg7 {[%clk 0:03:00.2]} 3. Nc3 {[%clk 0:02:58.1]} 3... d6 {[%clk 0:03:00.9]}
4. f4 {[%clk 0:02:58.1]} 4... a6 {[%clk 0:03:01.6]} 5. a4 {[%clk 0:02:57.3]}
5... b5 {[%clk 0:03:02.1]} 6. axb5 {[%clk 0:02:56.8]} 6... Nf6 {[%clk
0:03:01.7]} 7. Nf3 {[%clk 0:02:50.1]} 7... O-O {[%clk 0:03:01.1]} 8. Bd3 {[%clk
0:02:48]} 8... Bb7 {[%clk 0:03:00.2]} 9. bxa6 {[%clk 0:02:45.1]} 9... Nxa6
{[%clk 0:03:00.9]} 10. O-O {[%clk 0:02:44]} 10... c5 {[%clk 0:03:00.5]} 11. d5
{[%clk 0:02:38]} 11... Nb4 {[%clk 0:02:59.7]} 12. Rxa8 {[%clk 0:02:37.1]} 12...
Qxa8 {[%clk 0:03:00.5]} 13. Bd2 {[%clk 0:02:31]} 13... Re8 {[%clk 0:02:55.6]}
14. Qa1 {[%clk 0:01:48.5]} 14... Qc8 {[%clk 0:02:51.4]} 15. Na2 {[%clk
0:01:42.2]} 15... Nxd3 {[%clk 0:02:47.7]} 16. cxd3 {[%clk 0:01:42.1]} 16... Ba6
{[%clk 0:02:48.1]} 17. Qb1 {[%clk 0:01:37.2]} 17... Qb7 {[%clk 0:02:29.2]} 18.
Bc3 {[%clk 0:01:19.7]} 18... c4 {[%clk 0:02:21.3]} 19. dxc4 {[%clk 0:01:09.7]}
19... Bxc4 {[%clk 0:02:19.8]} 20. Re1 {[%clk 0:01:10.1]} 20... Ng4 {[%clk
0:02:06.8]} 21. h3 {[%clk 0:00:19.3]} 21... Qa7+ {[%clk 0:01:59.8]} 22. Kh1
{[%clk 0:00:19.1]} 22... Nf2+ {[%clk 0:02:00.4]} 23. Kh2 {[%clk 0:00:17.8]}
23... Bxa2 {[%clk 0:02:00.5]} 24. Qc2 {[%clk 0:00:17.1]} 24... Bxc3 {[%clk
0:01:55.8]} 25. bxc3 {[%clk 0:00:18]} 25... Bc4 {[%clk 0:01:55.7]} 26. e5 {[%clk
0:00:14.1]} 26... Nd3 {[%clk 0:01:46.2]} 27. Re3 {[%clk 0:00:13.6]} 27... Qxe3
{[%clk 0:01:44.4]} 0-1

[Event "*** Titled Tuesday Blitz"]
[Site "Chess.com"]
[Date "2021.03.09"]
[Round "5"]
[White "Alex-11211"]
[Black "david_alex"]
[Result "1-0"]
[WhiteElo "2401"]
[BlackElo "2085"]
[TimeControl "180+1"]
[EndTime "10:57:07 PST"]
[Termination "Alex-11211 won by checkmate"]

1. e4 {[%clk 0:02:47.6]} 1... d6 {[%clk 0:02:59.4]} 2. d4 {[%clk 0:02:47.2]}
2... Nf6 {[%clk 0:02:59.6]} 3. Nc3 {[%clk 0:02:47.5]} 3... g6 {[%clk 0:03:00]}
4. Be3 {[%clk 0:02:47.9]} 4... Bg7 {[%clk 0:03:00.1]} 5. Qd2 {[%clk 0:02:48.1]}
5... O-O {[%clk 0:02:59.6]} 6. f3 {[%clk 0:02:48.6]} 6... c6 {[%clk 0:02:59.9]}
7. g4 {[%clk 0:02:46.1]} 7... e5 {[%clk 0:02:46.7]} 8. Nge2 {[%clk 0:02:43.7]}
8... Nbd7 {[%clk 0:02:42.8]} 9. O-O-O {[%clk 0:02:36.3]} 9... Qc7 {[%clk
0:02:42.1]} 10. Ng3 {[%clk 0:02:28.3]} 10... b5 {[%clk 0:02:40.5]} 11. g5 {[%clk
0:02:27.8]} 11... Ne8 {[%clk 0:02:32.3]} 12. h4 {[%clk 0:02:27.9]} 12... b4
{[%clk 0:02:05.4]} 13. Nb1 {[%clk 0:02:21.6]} 13... exd4 {[%clk 0:01:55.4]} 14.
Bxd4 {[%clk 0:02:20.2]} 14... Bxd4 {[%clk 0:01:52.6]} 15. Qxd4 {[%clk
0:02:21.1]} 15... c5 {[%clk 0:01:53]} 16. Qd2 {[%clk 0:02:16.8]} 16... Ne5
{[%clk 0:01:45.9]} 17. Be2 {[%clk 0:01:46.5]} 17... a5 {[%clk 0:01:39.7]} 18. h5
{[%clk 0:01:45.6]} 18... Nc6 {[%clk 0:01:08.3]} 19. Bc4 {[%clk 0:01:31.2]} 19...
Ba6 {[%clk 0:00:41.1]} 20. Bd5 {[%clk 0:01:28.1]} 20... Kg7 {[%clk 0:00:24]} 21.
hxg6 {[%clk 0:01:12.4]} 21... fxg6 {[%clk 0:00:23.1]} 22. Rxh7+ {[%clk
0:01:06.2]} 22... Kxh7 {[%clk 0:00:21.3]} 23. Qh2+ {[%clk 0:01:06.7]} 23... Kg7
{[%clk 0:00:19.2]} 24. Qh6# {[%clk 0:01:07.1]} 1-0

[Event "*** Titled Tuesday Blitz"]
[Site "Chess.com"]
[Date "2021.03.09"]
[Round "5"]
[White "LamaChampetre"]
[Black "Kotofeyca"]
[Result "1-0"]
[WhiteElo "2226"]
[BlackElo "2358"]
[TimeControl "180+1"]
[EndTime "10:57:13 PST"]
[Termination "LamaChampetre won by resignation"]

1. d4 {[%clk 0:03:00.9]} 1... d5 {[%clk 0:02:58.5]} 2. c4 {[%clk 0:03:01.1]}
2... c6 {[%clk 0:02:57.9]} 3. Nf3 {[%clk 0:03:00.4]} 3... Nf6 {[%clk 0:02:57.8]}
4. e3 {[%clk 0:03:00.3]} 4... a6 {[%clk 0:02:57.4]} 5. Nc3 {[%clk 0:02:42.7]}
5... Bg4 {[%clk 0:02:56.6]} 6. Qb3 {[%clk 0:02:41.3]} 6... b5 {[%clk 0:02:54.5]}
7. c5 {[%clk 0:02:41.1]} 7... Bxf3 {[%clk 0:02:50.8]} 8. gxf3 {[%clk 0:02:40.8]}
8... e5 {[%clk 0:02:50.9]} 9. a4 {[%clk 0:02:20.1]} 9... exd4 {[%clk 0:02:46.2]}
10. exd4 {[%clk 0:02:19.5]} 10... Nbd7 {[%clk 0:02:45.3]} 11. axb5 {[%clk
0:01:31.9]} 11... axb5 {[%clk 0:02:46.2]} 12. Rxa8 {[%clk 0:01:31.1]} 12... Qxa8
{[%clk 0:02:46.4]} 13. Bxb5 {[%clk 0:01:24.7]} 13... cxb5 {[%clk 0:02:36.8]} 14.
Nxb5 {[%clk 0:01:25.6]} 14... Qc6 {[%clk 0:02:00.6]} 15. O-O {[%clk 0:01:06.2]}
15... Be7 {[%clk 0:01:28.2]} 16. Re1 {[%clk 0:01:04.7]} 16... Nf8 {[%clk
0:00:56.4]} 17. Nd6+ {[%clk 0:00:45.9]} 17... Kd7 {[%clk 0:00:54.8]} 18. Nxf7
{[%clk 0:00:41.5]} 18... Rg8 {[%clk 0:00:53.8]} 19. Ne5+ {[%clk 0:00:40.8]}
19... Kc7 {[%clk 0:00:51.1]} 20. Nxc6 {[%clk 0:00:40.5]} 20... Kxc6 {[%clk
0:00:52]} 21. Qb6+ {[%clk 0:00:39.9]} 21... Kd7 {[%clk 0:00:52.1]} 22. c6+
{[%clk 0:00:39.4]} 1-0

[Event "*** Titled Tuesday Blitz"]
[Site "Chess.com"]
[Date "2021.03.09"]
[Round "5"]
[White "Alexandr_Kholin"]
[Black "As0nchess"]
[Result "1-0"]
[WhiteElo "2467"]
[BlackElo "2635"]
[TimeControl "180+1"]
[EndTime "10:57:14 PST"]
[Termination "Alexandr_Kholin won by resignation"]

1. d4 {[%clk 0:03:00.9]} 1... Nf6 {[%clk 0:03:00]} 2. c4 {[%clk 0:02:59.6]} 2...
e6 {[%clk 0:03:00]} 3. Nf3 {[%clk 0:02:58.9]} 3... b6 {[%clk 0:02:58.7]} 4. Nc3
{[%clk 0:02:57.3]} 4... Bb7 {[%clk 0:02:56.6]} 5. a3 {[%clk 0:02:57.5]} 5... d5
{[%clk 0:02:55.9]} 6. cxd5 {[%clk 0:02:56]} 6... Nxd5 {[%clk 0:02:56.8]} 7. Nxd5
{[%clk 0:02:43.8]} 7... Qxd5 {[%clk 0:02:50]} 8. Bf4 {[%clk 0:02:42.3]} 8... Bd6
{[%clk 0:02:47.5]} 9. Bxd6 {[%clk 0:02:37.2]} 9... cxd6 {[%clk 0:02:48.4]} 10.
Rc1 {[%clk 0:02:37.5]} 10... O-O {[%clk 0:02:47.8]} 11. e3 {[%clk 0:02:37.7]}
11... Nd7 {[%clk 0:02:46.8]} 12. Rc7 {[%clk 0:02:27.8]} 12... Bc8 {[%clk
0:02:23.8]} 13. Qc2 {[%clk 0:02:18.3]} 13... Nf6 {[%clk 0:02:22.4]} 14. Bd3
{[%clk 0:02:15.3]} 14... Qa5+ {[%clk 0:02:18.6]} 15. b4 {[%clk 0:02:01.2]} 15...
Qxa3 {[%clk 0:02:18]} 16. O-O {[%clk 0:02:01.1]} 16... Nd5 {[%clk 0:02:17]} 17.
Bxh7+ {[%clk 0:01:58.6]} 17... Kh8 {[%clk 0:02:16.5]} 18. Ng5 {[%clk 0:01:21.3]}
18... Nxc7 {[%clk 0:02:05.5]} 19. Bg6 {[%clk 0:00:50]} 19... f5 {[%clk
0:01:03.3]} 20. Qd1 {[%clk 0:00:43.3]} 1-0

[Event "*** Titled Tuesday Blitz"]
[Site "Chess.com"]
[Date "2021.03.09"]
[Round "5"]
[White "UmarovSabir"]
[Black "hypert"]
[Result "0-1"]
[WhiteElo "2275"]
[BlackElo "2498"]
[TimeControl "180+1"]
[EndTime "10:57:16 PST"]
[Termination "hypert won on time"]

1. e4 {[%clk 0:02:59.7]} 1... c5 {[%clk 0:02:59.5]} 2. Nf3 {[%clk 0:02:58.7]}
2... Nc6 {[%clk 0:03:00.1]} 3. Bb5 {[%clk 0:02:56.5]} 3... e6 {[%clk 0:03:00.2]}
4. Bxc6 {[%clk 0:02:55.2]} 4... bxc6 {[%clk 0:03:01.1]} 5. O-O {[%clk
0:02:55.2]} 5... Qc7 {[%clk 0:03:01.6]} 6. d3 {[%clk 0:02:50.4]} 6... Ne7 {[%clk
0:03:01.1]} 7. b3 {[%clk 0:02:48.9]} 7... Ng6 {[%clk 0:03:00.7]} 8. Bb2 {[%clk
0:02:48]} 8... e5 {[%clk 0:02:59.7]} 9. Nbd2 {[%clk 0:02:34.1]} 9... Be7 {[%clk
0:02:59.3]} 10. Nc4 {[%clk 0:02:33]} 10... d6 {[%clk 0:02:59]} 11. Re1 {[%clk
0:02:22.9]} 11... O-O {[%clk 0:02:58.5]} 12. h3 {[%clk 0:02:02.7]} 12... f5
{[%clk 0:02:57.8]} 13. exf5 {[%clk 0:01:55.6]} 13... Bxf5 {[%clk 0:02:55.5]} 14.
Ne3 {[%clk 0:01:04.3]} 14... Be6 {[%clk 0:02:52.7]} 15. c3 {[%clk 0:00:56.7]}
15... Nf4 {[%clk 0:02:47.4]} 16. d4 {[%clk 0:00:54.4]} 16... cxd4 {[%clk
0:02:44.8]} 17. cxd4 {[%clk 0:00:53.9]} 17... e4 {[%clk 0:02:44.6]} 18. Nh2
{[%clk 0:00:50]} 18... d5 {[%clk 0:02:41.2]} 19. Nhg4 {[%clk 0:00:49.6]} 19...
Bd6 {[%clk 0:02:36.7]} 20. Rc1 {[%clk 0:00:48.7]} 20... Rf7 {[%clk 0:02:33.5]}
21. Ne5 {[%clk 0:00:47.6]} 21... Bxe5 {[%clk 0:02:29.4]} 22. dxe5 {[%clk
0:00:47.6]} 22... Raf8 {[%clk 0:02:28.1]} 23. Rc2 {[%clk 0:00:34.7]} 23... Bxh3
{[%clk 0:02:21.9]} 24. Ba3 {[%clk 0:00:32.3]} 24... Re8 {[%clk 0:02:14]} 25.
gxh3 {[%clk 0:00:30.9]} 25... Nxh3+ {[%clk 0:02:14.1]} 26. Kg2 {[%clk 0:00:31]}
26... Nf4+ {[%clk 0:02:09.4]} 27. Kh2 {[%clk 0:00:16.3]} 27... Qxe5 {[%clk
0:02:10.3]} 28. Bb2 {[%clk 0:00:08.4]} 28... Qg5 {[%clk 0:02:06.5]} 29. Qg4
{[%clk 0:00:06.7]} 29... Qh6+ {[%clk 0:02:06]} 30. Kg3 {[%clk 0:00:02.4]} 30...
Nh5+ {[%clk 0:02:03.9]} 31. Kg2 {[%clk 0:00:02.2]} 31... Rf4 {[%clk 0:01:58.8]}
32. Qh3 {[%clk 0:00:01.4]} 32... Qg5+ {[%clk 0:01:47.4]} 33. Kf1 {[%clk
0:00:01.2]} 33... Ng3+ {[%clk 0:01:45.8]} 0-1

[Event "*** Titled Tuesday Blitz"]
[Site "Chess.com"]
[Date "2021.03.09"]
[Round "5"]
[White "vovachesss"]
[Black "Diamantidis_13"]
[Result "1-0"]
[WhiteElo "2689"]
[BlackElo "2368"]
[TimeControl "180+1"]
[EndTime "10:57:19 PST"]
[Termination "vovachesss won by checkmate"]

1. b3 {[%clk 0:02:38.2]} 1... e6 {[%clk 0:02:55.3]} 2. Bb2 {[%clk 0:02:38.3]}
2... Nf6 {[%clk 0:02:56.2]} 3. e3 {[%clk 0:02:38.4]} 3... b6 {[%clk 0:02:56]} 4.
Nf3 {[%clk 0:02:38.7]} 4... Bb7 {[%clk 0:02:56.5]} 5. d4 {[%clk 0:02:39.4]} 5...
c5 {[%clk 0:02:53.3]} 6. Nbd2 {[%clk 0:02:39.8]} 6... Be7 {[%clk 0:02:53.2]} 7.
Bd3 {[%clk 0:02:39.9]} 7... O-O {[%clk 0:02:53.9]} 8. O-O {[%clk 0:02:40.5]}
8... d6 {[%clk 0:02:54.3]} 9. a3 {[%clk 0:02:41.1]} 9... Nbd7 {[%clk 0:02:54.5]}
10. c4 {[%clk 0:02:41.1]} 10... cxd4 {[%clk 0:02:54.2]} 11. exd4 {[%clk
0:02:41.3]} 11... Re8 {[%clk 0:02:54.6]} 12. Re1 {[%clk 0:02:41.3]} 12... Bf8
{[%clk 0:02:54.1]} 13. h3 {[%clk 0:02:41.8]} 13... a6 {[%clk 0:02:52.5]} 14. Qc2
{[%clk 0:02:41.3]} 14... Rc8 {[%clk 0:02:51.2]} 15. Rad1 {[%clk 0:02:40.4]}
15... b5 {[%clk 0:02:48.4]} 16. Qb1 {[%clk 0:02:38.7]} 16... bxc4 {[%clk
0:02:48.2]} 17. bxc4 {[%clk 0:02:39.6]} 17... Qa5 {[%clk 0:02:44.3]} 18. d5
{[%clk 0:02:38.5]} 18... exd5 {[%clk 0:02:39.4]} 19. Bxf6 {[%clk 0:02:38.4]}
19... Nxf6 {[%clk 0:02:38.5]} 20. Qxb7 {[%clk 0:02:38.1]} 20... Qxa3 {[%clk
0:02:25.7]} 21. Bf5 {[%clk 0:02:33.4]} 21... Rb8 {[%clk 0:02:24.8]} 22. Qc7
{[%clk 0:02:29.2]} 22... g6 {[%clk 0:02:15.7]} 23. Bb1 {[%clk 0:02:09.9]} 23...
Rec8 {[%clk 0:02:12.5]} 24. Qa7 {[%clk 0:02:01.1]} 24... dxc4 {[%clk 0:02:07.2]}
25. Ne4 {[%clk 0:01:50]} 25... Nxe4 {[%clk 0:02:02.7]} 26. Bxe4 {[%clk 0:01:50]}
26... Qc5 {[%clk 0:01:59.2]} 27. Qxa6 {[%clk 0:01:48.2]} 27... Rb2 {[%clk
0:01:54.2]} 28. Re3 {[%clk 0:01:41.1]} 28... Bh6 {[%clk 0:01:51.1]} 29. Rd5
{[%clk 0:01:26]} 29... Bxe3 {[%clk 0:01:39.5]} 30. Rxc5 {[%clk 0:01:24.3]} 30...
Bxf2+ {[%clk 0:01:39.2]} 31. Kh2 {[%clk 0:01:22.6]} 31... Rxc5 {[%clk
0:01:39.5]} 32. Qxd6 {[%clk 0:01:22.3]} 32... c3 {[%clk 0:01:25]} 33. Qf6 {[%clk
0:01:16.4]} 33... Rb8 {[%clk 0:01:18.3]} 34. Ne5 {[%clk 0:01:13.5]} 34... Rc7
{[%clk 0:01:00.6]} 35. Qxf2 {[%clk 0:01:12.4]} 35... Re8 {[%clk 0:00:59.8]} 36.
Ng4 {[%clk 0:01:10.3]} 36... Rxe4 {[%clk 0:00:55.3]} 37. Nf6+ {[%clk 0:01:10.4]}
37... Kg7 {[%clk 0:00:55.2]} 38. Nxe4 {[%clk 0:01:10.9]} 38... c2 {[%clk
0:00:55.7]} 39. Qf6+ {[%clk 0:01:11.2]} 39... Kh6 {[%clk 0:00:51]} 40. Nd6
{[%clk 0:01:11.2]} 40... c1=Q {[%clk 0:00:45.7]} 41. Nf5+ {[%clk 0:01:11.3]}
41... Kh5 {[%clk 0:00:46.2]} 42. g4# {[%clk 0:01:11.5]} 1-0

[Event "*** Titled Tuesday Blitz"]
[Site "Chess.com"]
[Date "2021.03.09"]
[Round "5"]
[White "SkippingLaptop"]
[Black "thechesscorner64"]
[Result "0-1"]
[WhiteElo "2084"]
[BlackElo "2378"]
[TimeControl "180+1"]
[EndTime "10:57:22 PST"]
[Termination "thechesscorner64 won by resignation"]

1. d4 {[%clk 0:03:00.9]} 1... Nf6 {[%clk 0:02:59]} 2. c4 {[%clk 0:03:01.3]} 2...
e6 {[%clk 0:02:59]} 3. Nc3 {[%clk 0:03:01.4]} 3... Bb4 {[%clk 0:02:59.4]} 4. Qc2
{[%clk 0:02:59.6]} 4... Nc6 {[%clk 0:02:58.6]} 5. Nf3 {[%clk 0:02:52.6]} 5... d6
{[%clk 0:02:58]} 6. Bg5 {[%clk 0:02:45.7]} 6... h6 {[%clk 0:02:57.9]} 7. Bh4
{[%clk 0:02:40.8]} 7... O-O {[%clk 0:02:57.8]} 8. e4 {[%clk 0:02:35.4]} 8... e5
{[%clk 0:02:54.1]} 9. d5 {[%clk 0:02:23.7]} 9... Nd4 {[%clk 0:02:52]} 10. Qd3
{[%clk 0:02:12.1]} 10... c5 {[%clk 0:02:36.5]} 11. a3 {[%clk 0:02:06.6]} 11...
Ba5 {[%clk 0:02:24.9]} 12. Be2 {[%clk 0:01:59.6]} 12... Bd7 {[%clk 0:02:12.2]}
13. O-O {[%clk 0:01:55.2]} 13... a6 {[%clk 0:02:10.6]} 14. b4 {[%clk 0:01:44.3]}
14... Nxe2+ {[%clk 0:02:03]} 15. Nxe2 {[%clk 0:01:41.1]} 15... cxb4 {[%clk
0:02:03]} 16. axb4 {[%clk 0:01:37]} 16... Bxb4 {[%clk 0:02:03.9]} 17. Rfb1
{[%clk 0:01:34.4]} 17... a5 {[%clk 0:02:00.8]} 18. Ng3 {[%clk 0:01:22.3]} 18...
b5 {[%clk 0:01:41.7]} 19. cxb5 {[%clk 0:01:11.8]} 19... Rb8 {[%clk 0:01:39.9]}
20. Nh5 {[%clk 0:01:10]} 20... g5 {[%clk 0:01:20.2]} 21. Nxg5 {[%clk 0:01:04.5]}
21... Nxh5 {[%clk 0:01:20.1]} 22. Nf3 {[%clk 0:00:21.7]} 22... Nf4 {[%clk
0:01:15.3]} 23. Qc2 {[%clk 0:00:17.4]} 23... Qc8 {[%clk 0:01:14.7]} 24. Qa2
{[%clk 0:00:14.7]} 24... Bg4 {[%clk 0:01:09]} 0-1

[Event "*** Titled Tuesday Blitz"]
[Site "Chess.com"]
[Date "2021.03.09"]
[Round "5"]
[White "wonderfultime"]
[Black "aa175"]
[Result "1-0"]
[WhiteElo "2972"]
[BlackElo "2572"]
[TimeControl "180+1"]
[EndTime "10:57:25 PST"]
[Termination "wonderfultime won by resignation"]

1. d4 {[%clk 0:03:00.9]} 1... Nf6 {[%clk 0:02:54.6]} 2. Nf3 {[%clk 0:02:58.1]}
2... g6 {[%clk 0:02:54.2]} 3. Bg5 {[%clk 0:02:58.2]} 3... Bg7 {[%clk 0:02:53.8]}
4. Nbd2 {[%clk 0:02:57.6]} 4... d5 {[%clk 0:02:53.6]} 5. c3 {[%clk 0:02:58.1]}
5... O-O {[%clk 0:02:51.7]} 6. e3 {[%clk 0:02:58.6]} 6... c5 {[%clk 0:02:50.1]}
7. Bd3 {[%clk 0:02:58.9]} 7... Nbd7 {[%clk 0:02:44.8]} 8. O-O {[%clk 0:02:58.6]}
8... b6 {[%clk 0:02:43.2]} 9. a4 {[%clk 0:02:57.2]} 9... Bb7 {[%clk 0:02:40.6]}
10. a5 {[%clk 0:02:56.4]} 10... Qc7 {[%clk 0:02:29.2]} 11. Bf4 {[%clk
0:02:55.2]} 11... Qc8 {[%clk 0:02:16.1]} 12. h3 {[%clk 0:02:54.7]} 12... Ba6
{[%clk 0:02:04.5]} 13. Bxa6 {[%clk 0:02:50.4]} 13... Qxa6 {[%clk 0:02:05.4]} 14.
axb6 {[%clk 0:02:51.3]} 14... Qxb6 {[%clk 0:02:06.3]} 15. Qc2 {[%clk 0:02:48]}
15... c4 {[%clk 0:01:56.5]} 16. Ra2 {[%clk 0:02:44.5]} 16... a5 {[%clk
0:01:51.8]} 17. Rfa1 {[%clk 0:02:44.5]} 17... Ra6 {[%clk 0:01:40.2]} 18. e4
{[%clk 0:02:41.2]} 18... e6 {[%clk 0:01:34.3]} 19. e5 {[%clk 0:02:39]} 19... Ne8
{[%clk 0:01:33.8]} 20. Qa4 {[%clk 0:02:16.9]} 20... Nb8 {[%clk 0:01:17.4]} 21.
h4 {[%clk 0:01:41.3]} 21... Nc7 {[%clk 0:01:06.4]} 22. h5 {[%clk 0:01:40.9]}
22... Rc8 {[%clk 0:00:59.5]} 23. hxg6 {[%clk 0:01:39.7]} 23... hxg6 {[%clk
0:00:59.5]} 24. g3 {[%clk 0:01:40.2]} 24... Nc6 {[%clk 0:00:55]} 25. Kg2 {[%clk
0:01:39.4]} 25... Qb5 {[%clk 0:00:46]} 26. Qd1 {[%clk 0:01:39.7]} 26... Ne7
{[%clk 0:00:41.8]} 27. Qh1 {[%clk 0:01:39.2]} 27... a4 {[%clk 0:00:35.9]} 28.
Ng5 {[%clk 0:01:39.3]} 28... Nf5 {[%clk 0:00:28.3]} 29. g4 {[%clk 0:01:32.9]}
29... Nh6 {[%clk 0:00:23]} 30. Qh4 {[%clk 0:01:32.4]} 30... Qc6 {[%clk
0:00:11.6]} 31. Ngf3 {[%clk 0:01:29.9]} 31... Qb5 {[%clk 0:00:01.8]} 32. Bxh6
{[%clk 0:01:29.6]} 32... Bxh6 {[%clk 0:00:02.3]} 33. Qxh6 {[%clk 0:01:30.5]}
33... Qe8 {[%clk 0:00:02.6]} 34. Ng5 {[%clk 0:01:30.3]} 34... Rb8 {[%clk
0:00:01.8]} 35. Rh1 {[%clk 0:01:30.1]} 1-0